fUST/lending_fUST_20240226
["ID","MTS","AMOUNT","RATE_DAILY","PERIOD"]
[315183211,1708909846476,-500.0,0.00019452,2]
[315183212,1708909846485,-500.0,0.00019452,2]
[315183213,1708909846496,-500.0,0.00019452,2]
[315183214,1708909846505,-500.0,0.00019452,2]
[315183215,1708909846514,-500.53936311,0.00019452,2]
[315183216,1708909846523,-500.0,0.00019452,2]
[315183217,1708909846532,-500.0,0.00019452,2]
[315183218,1708909846540,-420.68246109,0.00019452,2]
[315183219,1708909846550,-500.0,0.00019452,2]
[315183220,1708909846559,-500.0,0.00019452,2]
[315183221,1708909846568,-500.0,0.00019452,2]
[315183222,1708909846577,-500.0,0.00019452,2]
[315183223,1708909846586,-500.0,0.00019452,2]
[315183224,1708909846595,-500.0,0.00019452,2]
[315183225,1708909846604,-500.0,0.00019452,2]
[315183226,1708909846613,-500.0,0.00019452,2]
[315183227,1708909846621,-500.0,0.00019452,2]
[315183228,1708909846631,-500.0,0.00019452,2]
[315183229,1708909846640,-977.42,0.00019452,2]
[315183230,1708909846649,-500.0,0.00019452,2]
[315183231,1708909846658,-500.0,0.00019452,2]
[315183232,1708909846667,-500.0,0.00019452,2]
[315183233,1708909846676,-500.0,0.00019452,2]
[315183234,1708909846685,-500.0,0.00019452,2]
[315183235,1708909846695,-500.0,0.00019452,2]
[315183236,1708909846703,-151.0,0.00019452,2]
[315183237,1708909846712,-312.19112471,0.00019452,2]
[315183238,1708909846722,-500.0,0.00019452,2]
[315183239,1708909846731,-266.57275156,0.00019452,2]
[315183240,1708909846740,-500.0,0.00019452,2]
[315183241,1708909846749,-509.9,0.00019452,2]
[315183242,1708909846758,-500.0,0.00019452,2]
[315183243,1708909846767,-500.0,0.00019452,2]
[315183244,1708909846776,-500.0,0.00019452,2]
[315183245,1708909846786,-640.14797302,0.00019452,2]
[315183246,1708909846795,-500.0,0.00019452,2]
[315183247,1708909846805,-500.0,0.00019452,2]
[315183248,1708909846814,-500.0,0.00019452,2]
[315183249,1708909846823,-500.0,0.00019452,2]
[315183250,1708909846833,-500.0,0.00019452,2]
[315183251,1708909846845,-544.51786006,0.00019452,2]
[315183252,1708909846855,-500.0,0.00019452,2]
[315183253,1708909846864,-290.34416651,0.00019452,2]
[315183254,1708909846873,-1743.01,0.00019452,2]
[315183255,1708909846882,-500.0,0.00019452,2]
[315183256,1708909846891,-500.0,0.00019452,2]
[315183257,1708909846899,-500.0,0.00019452,2]
[315183258,1708909846908,-500.0,0.00019452,2]
[315183259,1708909846917,-500.0,0.00019452,2]
[315183260,1708909846926,-978.26,0.00019452,2]
[315183261,1708909846935,-741.61,0.00019452,2]
[315183262,1708909846943,-500.0,0.00019452,2]
[315183263,1708909846952,-733.84,0.00019452,2]
[315183264,1708909846961,-11468.26,0.00019452,2]
[315183265,1708909846970,-1415.01,0.00019452,2]
[315183266,1708909846979,-1974.82,0.00019452,2]
[315183267,1708909846987,-500.0,0.00019452,2]
[315183268,1708909846996,-499.60684837,0.00019452,2]
[315183269,1708909847005,-211.99734928,0.00019452,2]
[315183270,1708909847014,-500.0,0.00019452,2]
[315183271,1708909847023,-4170.58,0.00019452,2]
[315183272,1708909847031,-500.0,0.00019452,2]
[315183273,1708909847041,-500.0,0.00019452,2]
[315183274,1708909847050,-500.0,0.00019452,2]
[315183275,1708909847059,-500.0,0.00019452,2]
[315183276,1708909847067,-500.0,0.00019452,2]
[315183277,1708909847076,-2675.87,0.00019452,2]
[315183278,1708909847085,-500.0,0.00019452,2]
[315183279,1708909847094,-2900.1,0.00019452,2]
[315183280,1708909847103,-500.0,0.00019452,2]
[315183281,1708909847112,-500.0,0.00019452,2]
[315183282,1708909847121,-2020.13,0.00019452,2]
[315183283,1708909847141,-500.0,0.00019452,2]
[315183284,1708909847151,-500.0,0.00019452,2]
[315183285,1708909847160,-500.0,0.00019452,2]
[315183286,1708909847170,-2199.13,0.00019452,2]
[315183287,1708909847179,-500.0,0.00019452,2]
[315183288,1708909847188,-500.0,0.00019452,2]
[315183289,1708909847198,-500.0,0.00019452,2]
[315183290,1708909847207,-1000.0,0.00019452,2]
[315183291,1708909847217,-634.56249942,0.00019452,2]
[315183292,1708909847226,-500.0,0.00019452,2]
[315183293,1708909847239,-500.0,0.00019452,2]
[315183294,1708909847249,-500.0,0.00019452,2]
[315183295,1708909847258,-500.0,0.00019452,2]
[315183296,1708909847268,-22115.03,0.00019452,2]
[315183297,1708909847278,-1000.0,0.00019452,2]
[315183298,1708909847287,-500.0,0.00019452,2]
[315183299,1708909847297,-500.0,0.00019452,2]
[315183300,1708909847306,-508.98953483,0.00019452,2]
[315183301,1708909847317,-500.0,0.00019452,2]
[315183302,1708909847326,-500.0,0.00019452,2]
[315183303,1708909847336,-500.0,0.00019452,2]
[315183304,1708909847345,-500.0,0.00019452,2]
[315183305,1708909847354,-500.0,0.00019452,2]
[315183306,1708909847364,-500.0,0.00019452,2]
[315183307,1708909847374,-501.43563149,0.00019452,2]
[315183308,1708909847383,-500.62885476,0.00019452,2]
[315183309,1708909847392,-2173.86,0.00019452,2]
[315183310,1708909847402,-1727.8,0.00019452,2]
[315183311,1708909847411,-500.0,0.00019452,2]
[315183312,1708909847421,-500.0,0.00019452,2]
[315183313,1708909847431,-500.0,0.00019452,2]
[315183314,1708909847440,-500.0,0.00019452,2]
[315183315,1708909847450,-500.0,0.00019452,2]
[315183316,1708909847459,-500.0,0.00019452,2]
[315183317,1708909847468,-8025.44,0.00019452,2]
[315183318,1708909847478,-500.0,0.00019452,2]
[315183319,1708909847487,-500.0,0.00019452,2]
[315183320,1708909847497,-504.30900144,0.00019452,2]
[315183321,1708909847506,-11096.47,0.00019452,2]
[315183322,1708909847516,-500.0,0.00019452,2]
[315183323,1708909847526,-500.0,0.00019452,2]
[315183324,1708909847535,-500.0,0.00019452,2]
[315183325,1708909847544,-500.0,0.00019452,2]
[315183326,1708909847554,-761.57,0.00019452,2]
[315183327,1708909847563,-586.26,0.00019452,2]
[315183328,1708909847573,-500.0,0.00019452,2]
[315183329,1708909847582,-500.0,0.00019452,2]
[315183330,1708909847592,-1507.74,0.00019452,2]
[315183331,1708909847601,-3049.49,0.00019452,2]
[315183332,1708909847611,-500.0,0.00019452,2]
[315183333,1708909847620,-500.0,0.00019452,2]
[315183334,1708909847630,-510.22306871,0.00019452,2]
[315183335,1708909847639,-200.85899161,0.00019452,2]
[315183336,1708909847649,-500.0,0.00019452,2]
[315183337,1708909847659,-500.0,0.00019452,2]
[315183338,1708909847668,-500.0,0.00019452,2]
[315183339,1708909847678,-500.0,0.00019452,2]
[315183340,1708909847687,-592.55105003,0.00019452,2]
[315183341,1708909847697,-501.27644702,0.00019452,2]
[315183342,1708909847706,-500.0,0.00019452,2]
[315183343,1708909847717,-22569.97,0.00019452,2]
[315183344,1708909847727,-3094.09,0.00019452,2]
[315183345,1708909847737,-1233.15,0.00019452,2]
[315183346,1708909847746,-4416.58,0.00019452,2]
[315183347,1708909847755,-500.0,0.00019452,2]
[315183348,1708909847765,-500.0,0.00019452,2]
[315183349,1708909847774,-500.0,0.00019452,2]
[315183350,1708909847784,-500.0,0.00019452,2]
[315183351,1708909847793,-500.0,0.00019452,2]
[315183352,1708909847803,-500.0,0.00019452,2]
[315183353,1708909847813,-500.0,0.00019452,2]
[315183354,1708909847822,-500.0,0.00019452,2]
[315183355,1708909847832,-500.0,0.00019452,2]
[315183356,1708909847842,-500.0,0.00019452,2]
[315183357,1708909847851,-2447.62,0.00019452,2]
[315183358,1708909847860,-500.0,0.00019452,2]
[315183359,1708909847869,-500.0,0.00019452,2]
[315183360,1708909847879,-3207.89,0.00019452,2]
[315183361,1708909847888,-500.0,0.00019452,2]
[315183362,1708909847897,-182.51135653,0.00019472,2]
[315183363,1708909847906,-182.51135653,0.00019477,2]
[315183364,1708909847916,-7321.61669943,0.00019482,2]
[315183365,1708909847925,-7321.61669943,0.00019482,2]
[315183366,1708909847934,-7321.61669943,0.00019485,2]
[315183367,1708909847943,-182.51135653,0.00019498,2]
[315183368,1708909847952,-1002.29934527,0.00019526,2]
[315183369,1708909847963,-166.666666,0.00019627,2]
[315183370,1708909847972,-5523.32487849,0.000197,2]
[315183371,1708909847982,-5523.32487849,0.000197,2]
[315183372,1708909847992,-5523.32487849,0.000197,2]
[315183373,1708909848001,-500.0,0.00019725,2]
[315183374,1708909848010,-500.0,0.00019725,2]
[315183375,1708909848019,-500.0,0.00019725,2]
[315183376,1708909848028,-500.0,0.00019725,2]
[315183377,1708909848037,-322.02967842,0.00019725,2]
[315183378,1708909848046,-500.0,0.00019726,2]
[315183379,1708909848055,-500.0,0.00019726,2]
[315183380,1708909848064,-789.38,0.00019726,2]
[315183381,1708909848074,-500.0,0.00019726,2]
[315183382,1708909848083,-500.0,0.00019726,2]
[315183383,1708909848092,-628.2899227,0.00019726,2]
[315183384,1708909848101,-500.0,0.00019726,2]
[315183385,1708909848110,-255.63018789,0.00019726,2]
[315183386,1708909848231,-500.0,0.00019726,2]
[315183387,1708909848244,-500.0,0.00019726,2]
[315183388,1708909848253,-500.0,0.00019726,2]
[315183389,1708909848262,-500.0,0.00019726,2]
[315183390,1708909848271,-532.85367044,0.00019726,2]
[315183391,1708909848280,-500.0,0.00019726,2]
[315183392,1708909848290,-500.0,0.00019726,2]
[315183393,1708909848298,-500.0,0.00019726,2]
[315183394,1708909848308,-500.0,0.00019726,2]
[315183395,1708909848317,-500.0,0.00019726,2]
[315183396,1708909848327,-487.22362763,0.00019726,2]
[315183397,1708909848336,-1278.96,0.00019726,2]
[315183398,1708909848345,-500.0,0.00019726,2]
[315183399,1708909848354,-500.0,0.00019726,2]
[315183400,1708909848363,-500.90622344,0.00019726,2]
[315183401,1708909848372,-500.0,0.00019726,2]
[315183402,1708909848381,-500.0,0.00019726,2]
[315183403,1708909848390,-500.0,0.00019726,2]
[315183404,1708909848399,-405.33060812,0.00019726,2]
[315183405,1708909848409,-500.0,0.00019726,2]
[315183406,1708909848418,-500.0,0.00019726,2]
[315183407,1708909848427,-500.0,0.00019726,2]
[315183408,1708909848437,-500.0,0.00019726,2]
[315183409,1708909848446,-719.24,0.00019726,2]
[315183410,1708909848455,-1820.33,0.00019726,2]
[315183411,1708909848465,-500.0,0.00019726,2]
[315183412,1708909848474,-500.0,0.00019726,2]
[315183413,1708909848483,-500.0,0.00019726,2]
[315183414,1708909848492,-1465.6,0.00019726,2]
[315183415,1708909848501,-500.76231517,0.00019726,2]
[315183416,1708909848511,-1490.72,0.00019726,2]
[315183417,1708909848520,-500.0,0.00019726,2]
[315183418,1708909848529,-500.0,0.00019726,2]
[315183419,1708909848539,-439.43556303,0.00019726,2]
[315183420,1708909848549,-617.2,0.00019726,2]
[315183421,1708909848559,-500.0,0.00019726,2]
[315183422,1708909848568,-501.38504518,0.00019726,2]
[315183423,1708909848577,-500.0,0.00019726,2]
[315183424,1708909848587,-503.59319425,0.00019726,2]
[315183425,1708909848597,-500.0,0.00019726,2]
[315183426,1708909848606,-500.0,0.00019726,2]
[315183427,1708909848616,-500.0,0.00019726,2]
[315183428,1708909848625,-500.0,0.00019726,2]
[315183429,1708909848634,-500.0,0.00019726,2]
[315183430,1708909848644,-500.0,0.00019726,2]
[315183431,1708909848653,-530.97986716,0.00019726,2]
[315183432,1708909848662,-500.0,0.00019726,2]
[315183433,1708909848671,-500.0,0.00019726,2]
[315183434,1708909848680,-500.0,0.00019726,2]
[315183435,1708909848689,-500.0,0.00019726,2]
[315183436,1708909848697,-630.44,0.00019726,2]
[315183437,1708909848706,-641.23,0.00019726,2]
[315183438,1708909848715,-500.0,0.00019726,2]
[315183439,1708909848724,-500.0,0.00019726,2]
[315183440,1708909848734,-500.0,0.00019726,2]
[315183441,1708909848743,-500.92354226,0.00019726,2]
[315183442,1708909848752,-500.0,0.00019726,2]
[315183443,1708909848761,-500.0,0.00019726,2]
[315183444,1708909848770,-500.0,0.00019726,2]
[315183445,1708909848779,-500.0,0.00019726,2]
[315183446,1708909848788,-2256.67,0.00019726,2]
[315183447,1708909848797,-500.92520509,0.00019726,2]
[315183448,1708909848807,-500.0,0.00019726,2]
[315183449,1708909848816,-500.0,0.00019726,2]
[315183450,1708909848825,-502.05058495,0.00019726,2]
[315183451,1708909848834,-500.0,0.00019726,2]
[315183452,1708909848843,-500.0,0.00019726,2]
[315183453,1708909848852,-500.0,0.00019726,2]
[315183454,1708909848860,-1754.11,0.00019726,2]
[315183455,1708909848869,-209.1137891,0.00019726,2]
[315183456,1708909848878,-500.0,0.00019726,2]
[315183457,1708909848887,-500.0,0.00019726,2]
[315183458,1708909848897,-500.0,0.00019726,2]
[315183459,1708909848905,-500.0,0.00019726,2]
[315183460,1708909848914,-500.0,0.00019726,2]
[315183461,1708909848923,-500.0,0.00019726,2]
[315183462,1708909848932,-500.0,0.00019726,2]
[315183463,1708909848940,-500.0,0.00019726,2]
[315183464,1708909848949,-500.0,0.00019726,2]
[315183465,1708909848958,-500.0,0.00019726,2]
[315183466,1708909848967,-500.0,0.00019726,2]
[315183467,1708909848976,-500.0,0.00019726,2]
[315183468,1708909848985,-500.0,0.00019726,2]
[315183469,1708909848994,-500.0,0.00019726,2]
[315183470,1708909849003,-977.42,0.00019726,2]
[315183471,1708909849012,-500.0,0.00019726,2]
[315183472,1708909849021,-500.0,0.00019726,2]
[315183473,1708909849030,-500.0,0.00019726,2]
[315183474,1708909849039,-500.0,0.00019726,2]
[315183475,1708909849048,-500.0,0.00019726,2]
[315183476,1708909849058,-500.0,0.00019726,2]
[315183477,1708909849066,-151.0,0.00019726,2]
[315183478,1708909849076,-500.0,0.00019726,2]
[315183479,1708909849085,-500.0,0.00019726,2]
[315183480,1708909849093,-509.9,0.00019726,2]
[315183481,1708909849102,-500.0,0.00019726,2]
[315183482,1708909849111,-500.39052972,0.00019726,2]
[315183483,1708909849120,-500.0,0.00019726,2]
[315183484,1708909849129,-500.0,0.00019726,2]
[315183485,1708909849138,-500.0,0.00019726,2]
[315183486,1708909849147,-500.0,0.00019726,2]
[315183487,1708909849155,-500.0,0.00019726,2]
[315183488,1708909849164,-500.0,0.00019726,2]
[315183489,1708909849173,-500.0,0.00019726,2]
[315183490,1708909849182,-1743.01,0.00019726,2]
[315183491,1708909849191,-500.0,0.00019726,2]
[315183492,1708909849202,-500.0,0.00019726,2]
[315183493,1708909849235,-500.0,0.00019726,2]
[315183494,1708909849247,-497.77855234,0.00019726,2]
[315183495,1708909849256,-978.26,0.00019726,2]
[315183496,1708909849265,-500.0,0.00019726,2]
[315183497,1708909849274,-741.61,0.00019726,2]
[315183498,1708909849284,-500.0,0.00019726,2]
[315183499,1708909849293,-733.84,0.00019726,2]
[315183500,1708909849302,-11468.26,0.00019726,2]
[315183501,1708909849311,-1415.01,0.00019726,2]
[315183502,1708909849321,-1974.82,0.00019726,2]
[315183503,1708909849330,-500.0,0.00019726,2]
[315183504,1708909849340,-500.0,0.00019726,2]
[315183505,1708909849348,-4170.58,0.00019726,2]
[315183506,1708909849357,-500.0,0.00019726,2]
[315183507,1708909849366,-248.03889364,0.00019726,2]
[315183508,1708909849375,-500.0,0.00019726,2]
[315183509,1708909849384,-500.0,0.00019726,2]
[315183510,1708909849393,-500.0,0.00019726,2]
[315183511,1708909849402,-2675.87,0.00019726,2]
[315183512,1708909849410,-485.95883318,0.00019726,2]
[315183513,1708909849419,-2900.1,0.00019726,2]
[315183514,1708909849428,-500.0,0.00019726,2]
[315183515,1708909849437,-500.0,0.00019726,2]
[315183516,1708909849446,-2020.13,0.00019726,2]
[315183517,1708909849455,-500.0,0.00019726,2]
[315183518,1708909849464,-500.0,0.00019726,2]
[315183519,1708909849473,-2199.13,0.00019726,2]
[315183520,1708909849483,-500.0,0.00019726,2]
[315183521,1708909849492,-500.0,0.00019726,2]
[315183522,1708909849501,-500.0,0.00019726,2]
[315183523,1708909849510,-1000.0,0.00019726,2]
[315183524,1708909849519,-500.0,0.00019726,2]
[315183525,1708909849528,-500.0,0.00019726,2]
[315183526,1708909849537,-500.0,0.00019726,2]
[315183527,1708909849547,-500.0,0.00019726,2]
[315183528,1708909849555,-22115.03,0.00019726,2]
[315183529,1708909849564,-1004.11866743,0.00019726,2]
[315183530,1708909849574,-500.0,0.00019726,2]
[315183531,1708909849583,-500.0,0.00019726,2]
[315183532,1708909849592,-500.0,0.00019726,2]
[315183533,1708909849601,-500.0,0.00019726,2]
[315183534,1708909849610,-500.0,0.00019726,2]
[315183535,1708909849619,-500.0,0.00019726,2]
[315183536,1708909849628,-500.0,0.00019726,2]
[315183537,1708909849638,-2173.86,0.00019726,2]
[315183538,1708909849647,-1727.8,0.00019726,2]
[315183539,1708909849656,-500.0,0.00019726,2]
[315183540,1708909849665,-500.0,0.00019726,2]
[315183541,1708909849674,-500.0,0.00019726,2]
[315183542,1708909849683,-500.0,0.00019726,2]
[315183543,1708909849692,-500.0,0.00019726,2]
[315183544,1708909849702,-8025.44,0.00019726,2]
[315183545,1708909849711,-500.0,0.00019726,2]
[315183546,1708909849720,-500.0,0.00019726,2]
[315183547,1708909849729,-11096.47,0.00019726,2]
[315183548,1708909849738,-500.0,0.00019726,2]
[315183549,1708909849746,-500.0,0.00019726,2]
[315183550,1708909849755,-500.0,0.00019726,2]
[315183551,1708909849764,-614.95785219,0.00019726,2]
[315183552,1708909849773,-761.57,0.00019726,2]
[315183553,1708909849782,-586.26,0.00019726,2]
[315183554,1708909849791,-500.0,0.00019726,2]
[315183555,1708909849801,-500.0,0.00019726,2]
[315183556,1708909849811,-1507.74,0.00019726,2]
[315183557,1708909849820,-3049.49,0.00019726,2]
[315183558,1708909849829,-500.0,0.00019726,2]
[315183559,1708909849838,-500.0,0.00019726,2]
[315183560,1708909849848,-500.0,0.00019726,2]
[315183561,1708909849857,-500.0,0.00019726,2]
[315183562,1708909849866,-500.0,0.00019726,2]
[315183563,1708909849875,-500.0,0.00019726,2]
[315183564,1708909849885,-500.6752788,0.00019726,2]
[315183565,1708909849894,-22569.97,0.00019726,2]
[315183566,1708909849903,-3094.09,0.00019726,2]
[315183567,1708909849912,-1233.15,0.00019726,2]
[315183568,1708909849921,-4416.58,0.00019726,2]
[315183569,1708909849930,-500.0,0.00019726,2]
[315183570,1708909849939,-500.0,0.00019726,2]
[315183571,1708909849948,-500.0,0.00019726,2]
[315183572,1708909849958,-330.48068268,0.00019726,2]
[315183573,1708909849967,-589.92596995,0.00019726,2]
[315183574,1708909849976,-500.0,0.00019726,2]
[315183575,1708909849985,-500.0,0.00019726,2]
[315183576,1708909849994,-476.97605386,0.00019726,2]
[315183577,1708909850003,-500.0,0.00019726,2]
[315183578,1708909850012,-500.0,0.00019726,2]
[315183579,1708909850021,-2447.62,0.00019726,2]
[315183580,1708909850031,-500.0,0.00019726,2]
[315183581,1708909850041,-500.0,0.00019726,2]
[315183582,1708909850050,-3207.89,0.00019726,2]
[315183583,1708909850059,-500.0,0.00019726,2]
[315183584,1708909850068,-151.62887317,0.000199,2]
[315183585,1708909850077,-677.415638,0.00019998,2]
[315183586,1708909850086,-234.13825762,0.00019998,2]
[315183587,1708909850095,-625.44826244,0.00019998,2]
[315183588,1708909850104,-1412.29479491,0.00019998,2]
[315183589,1708909850113,-213.02714965,0.00019998,2]
[315183590,1708909850122,-1448.31818436,0.00019998,2]
[315183591,1708909850131,-216.50744666,0.00019999,2]
[315183592,1708909850140,-777792.91479338,0.0002,2]
[315183593,1708909850451,-297.71802642,0.00019178,2]
[315183594,1708909850467,-202.28197358,0.00019178,2]
[315183595,1708909850477,-500.0,0.00019452,2]
[315183596,1708909850487,-500.0,0.00019726,2]
[315183597,1708909850496,-764.29562688,0.0002,2]
[315183598,1708909850541,-479.96832089,0.0002,2]
[315183599,1708909979068,-155.0418613,0.00019177,2]
[315183600,1708909979090,-1327.58557632,0.00019177,2]
[315183601,1708909979112,-561.17050029,0.00019178,2]
[315183602,1708909979134,-1304.38,0.00019178,2]
[315183603,1708909979156,-500.0,0.00019178,2]
[315183604,1708909979179,-1525.13,0.00019178,2]
[315183605,1708909979201,-10034.72,0.00019178,2]
[315183606,1708909979224,-500.0,0.00019178,2]
[315183607,1708909979246,-500.0,0.00019178,2]
[315183608,1708909979270,-500.0,0.00019178,2]
[315183609,1708909979292,-500.0,0.00019178,2]
[315183610,1708909979314,-3738.71,0.00019178,2]
[315183611,1708909979336,-2341.39,0.00019178,2]
[315183612,1708909979361,-855.98,0.00019178,2]
[315183613,1708909979384,-500.0,0.00019178,2]
[315183614,1708909979405,-338.43794942,0.00019178,2]
[315183615,1708909979428,-500.0,0.00019178,2]
[315183616,1708909979456,-1727.97,0.00019178,2]
[315183617,1708909979478,-723.6,0.00019178,2]
[315183618,1708909979499,-565.77,0.00019178,2]
[315183619,1708909979521,-255.63018789,0.00019178,2]
[315183620,1708909979543,-500.0,0.00019178,2]
[315183621,1708909979564,-500.0,0.00019178,2]
[315183622,1708909979586,-1924.24,0.00019178,2]
[315183623,1708909979607,-500.0,0.00019178,2]
[315183624,1708909979628,-500.0,0.00019178,2]
[315183625,1708909979650,-500.0,0.00019178,2]
[315183626,1708909979671,-500.0,0.00019178,2]
[315183627,1708909979693,-500.0,0.00019178,2]
[315183628,1708909979714,-503.59319425,0.00019178,2]
[315183629,1708909979736,-1767.61,0.00019178,2]
[315183630,1708909979757,-500.0,0.00019178,2]
[315183631,1708909979777,-532.85367044,0.00019178,2]
[315183632,1708909979799,-500.0,0.00019178,2]
[315183633,1708909979820,-500.0,0.00019178,2]
[315183634,1708909979841,-500.0,0.00019178,2]
[315183635,1708909979863,-500.0,0.00019178,2]
[315183636,1708909979884,-500.0,0.00019178,2]
[315183637,1708909979906,-628.2899227,0.00019178,2]
[315183638,1708909979928,-500.0,0.00019178,2]
[315183639,1708909979950,-530.97986716,0.00019178,2]
[315183640,1708909980096,-500.0,0.00019178,2]
[315183641,1708909980118,-500.0,0.00019178,2]
[315183642,1708909980141,-500.0,0.00019178,2]
[315183643,1708909980163,-40335.71,0.00019432,3]
[315183644,1708909980186,-16321.20727023,0.00019442,3]
[315183659,1708910991795,185.191766,0.00017869,2]
[315183713,1708911041547,-691.70350185,0.00018207,2]
[315183714,1708911041558,-418.91051661,0.00018208,2]
[315183715,1708911041567,-155.02635448,0.00018212,2]
[315183716,1708911041577,-24900.0,0.0001822,2]
[315183717,1708911041586,-756.94717529,0.000189,2]
[315183718,1708911041595,-161.03,0.00019,7]
[315183719,1708911041605,-920.40513939,0.00019177,2]
[315183720,1708911041614,-500.0,0.00019178,2]
[315183721,1708911041623,-689.27,0.00019178,2]
[315183722,1708911041632,-500.0,0.00019178,2]
[315183723,1708911041642,-500.0,0.00019178,2]
[315183724,1708911041651,-500.0,0.00019178,2]
[315183725,1708911041661,-500.0,0.00019178,2]
[315183726,1708911041670,-389.05948452,0.00019178,2]
[315183727,1708911041679,-501.22711499,0.00019178,2]
[315183728,1708911041688,-541.94821274,0.00019178,2]
[315183729,1708911041699,-500.0,0.00019178,2]
[315183730,1708911041708,-500.0,0.00019178,2]
[315183731,1708911041717,-500.0,0.00019178,2]
[315183732,1708911041728,-500.0,0.00019178,2]
[315183733,1708911041737,-500.0,0.00019178,2]
[315183734,1708911041746,-500.0,0.00019178,2]
[315183735,1708911041755,-500.0,0.00019178,2]
[315183736,1708911041765,-500.0,0.00019178,2]
[315183737,1708911041775,-500.0,0.00019178,2]
[315183738,1708911041784,-640.34440866,0.00019178,2]
[315183739,1708911041793,-500.0,0.00019178,2]
[315183740,1708911041803,-500.0,0.00019178,2]
[315183741,1708911041813,-500.0,0.00019178,2]
[315183742,1708911041822,-604.17,0.00019178,2]
[315183743,1708911041831,-500.0,0.00019178,2]
[315183744,1708911041842,-515.7261257,0.00019178,2]
[315183745,1708911041852,-500.0,0.00019178,2]
[315183746,1708911041861,-500.0,0.00019178,2]
[315183747,1708911041872,-500.0,0.00019178,2]
[315183748,1708911041882,-500.0,0.00019178,2]
[315183749,1708911041893,-635.35,0.00019178,2]
[315183750,1708911041902,-500.0,0.00019178,2]
[315183751,1708911041912,-500.0,0.00019178,2]
[315183753,1708911041921,-500.0,0.00019178,2]
[315183755,1708911041930,-500.0,0.00019178,2]
[315183757,1708911041939,-500.0,0.00019178,2]
[315183759,1708911041948,-500.0,0.00019178,2]
[315183761,1708911041957,-500.0,0.00019178,2]
[315183763,1708911041966,-500.0,0.00019178,2]
[315183765,1708911041975,-500.0,0.00019178,2]
[315183767,1708911041985,-500.0,0.00019178,2]
[315183769,1708911041995,-500.0,0.00019178,2]
[315183771,1708911042004,-500.0,0.00019178,2]
[315183773,1708911042013,-500.0,0.00019178,2]
[315183775,1708911042023,-500.53936311,0.00019178,2]
[315183776,1708911042032,-500.0,0.00019178,2]
[315183779,1708911042041,-500.0,0.00019178,2]
[315183780,1708911042050,-500.0,0.00019178,2]
[315183782,1708911042059,-420.68246109,0.00019178,2]
[315183785,1708911042068,-500.0,0.00019178,2]
[315183786,1708911042077,-500.0,0.00019178,2]
[315183788,1708911042086,-500.0,0.00019178,2]
[315183791,1708911042097,-500.0,0.00019178,2]
[315183792,1708911042106,-500.0,0.00019178,2]
[315183794,1708911042115,-500.0,0.00019178,2]
[315183796,1708911042124,-151.0,0.00019178,2]
[315183798,1708911042133,-530.73,0.00019178,2]
[315183800,1708911042143,-500.0,0.00019178,2]
[315183803,1708911042152,-500.0,0.00019178,2]